bitfinex/quotes_SOLUSD_20250125
["timestamp","ask_amount","ask_price","bid_price","bid_amount"]
[1737793788342,23.776884,248.65,248.58,0.063]
[1737793790327,23.776884,248.65,248.58,4.0858]
[1737793790913,20.03,248.68,248.58,4.0858]
[1737793791123,23.776884,248.66,248.58,4.0858]
[1737793791328,20.0,248.63,248.58,4.0858]
[1737793792638,20.0,248.63,248.53,16.1365]
[1737793793843,23.776884,248.66,248.53,16.1365]
[1737793794031,23.776884,248.66,248.54,4.0234]
[1737793795520,23.776884,248.66,248.59,4.0226]
[1737793795722,0.03,248.65,248.59,4.0226]
[1737793795922,20.0,248.64,248.59,4.0226]
[1737793796834,0.03,248.65,248.59,4.0226]
[1737793798416,0.03,248.65,248.59,14.0793]
[1737793798732,0.03,248.65,248.6,0.40211926]
[1737793799236,0.03,248.65,248.61,1.6328]
[1737793799537,0.03,248.65,248.63,6.1295]
[1737793799727,0.03,248.65,248.64,0.40206055]
[1737793801034,0.03,248.68,248.64,33.40206055]
[1737793802022,0.03,248.68,248.65,4.0217]
[1737793802217,0.03,248.68,248.66,0.40200998]
[1737793804344,0.03,248.68,248.67,4.0213]
[1737793805420,0.03,248.68,248.67,24.0213]
[1737793805939,0.03,248.68,248.67,4.0213]
[1737793808356,0.03,248.68,248.63,6.1295]
[1737793808643,0.03,248.68,248.61,5.655]
[1737793809229,0.03,248.68,248.65,0.063]
[1737793810926,20.03,248.68,248.65,0.063]
[1737793812425,23.776884,248.67,248.65,0.063]
[1737793813444,27.798284,248.67,248.65,0.063]
[1737793818460,20.0,248.57,248.44,4.025]
[1737793818626,23.776884,248.56,248.42,4.0253]
[1737793818830,1.5477,248.61,248.43,8.0582]
[1737793819257,23.776884,248.6,248.43,8.0582]
[1737793819626,23.776884,248.56,248.43,8.0582]
[1737793820031,23.776884,248.56,248.44,4.0251]
[1737793820257,7.733,248.66,248.46,20.0]
[1737793820461,4.0219,248.64,248.47,20.0]
[1737793820665,43.776884,248.63,248.47,20.0]
[1737793821663,43.776884,248.63,248.58,0.063]
[1737793822042,47.798884,248.63,248.58,0.063]
[1737793825676,2.88,248.62,248.58,0.063]
[1737793826268,2.88,248.61,248.58,0.063]
[1737793826642,23.776884,248.6,248.58,0.063]
[1737793831147,27.799384,248.6,248.58,0.063]
[1737793835840,27.799384,248.6,248.43,8.0582]
[1737793836066,23.776884,248.52,248.43,12.0833]
[1737793837067,23.776884,248.48,248.41,4.0254]
[1737793838761,4.0237,248.53,248.41,4.0254]
[1737793839675,20.0,248.49,248.41,4.0254]
[1737793840171,20.0,248.49,248.4,0.063]
[1737793840172,23.776884,248.48,248.4,0.063]
[1737793840375,4.0229,248.58,248.41,0.40254847]
[1737793840667,20.0,248.57,248.41,33.0]
[1737793841376,20.0,248.53,248.42,14.089]
[1737793844645,23.776884,248.52,248.42,14.089]
[1737793845882,23.776884,248.52,248.42,4.0254]
[1737793849173,23.776884,248.53,248.42,4.0254]
[1737793849376,2.88,248.6,248.42,4.0254]
[1737793850589,27.799484,248.59,248.58,0.063]
[1737793851077,30.659484,248.59,248.58,0.063]
[1737793859583,20.0,248.52,248.4,0.063]
[1737793859889,20.0,248.52,248.41,4.0256]
[1737793860297,20.0,248.48,248.41,4.0256]
[1737793860596,20.0,248.48,248.4,4.0887]
[1737793861385,23.776884,248.47,248.4,0.063]
[1737793861796,27.801484,248.47,248.4,0.063]
[1737793863297,27.801484,248.47,248.41,0.063]
[1737793863902,20.0,248.48,248.41,0.063]
[1737793863903,6.6061,248.56,248.41,0.063]
[1737793864077,2.84,248.52,248.41,0.063]
[1737793865088,23.776884,248.51,248.41,4.0885]
[1737793865598,23.776884,248.51,248.42,1.5207]
[1737793866011,20.0,248.5,248.42,1.5207]
[1737793867001,4.0885,248.57,248.44,4.0251]
[1737793867182,4.0885,248.57,248.47,20.0]
[1737793867388,0.03,248.58,248.48,1.5207]
[1737793868405,0.03,248.58,248.49,6.4506]
[1737793868607,0.03,248.58,248.49,39.4506]
[1737793869408,0.03,248.58,248.52,20.0]
[1737793869709,0.03,248.67,248.56,1.5207]
[1737793870893,0.03,248.67,248.57,14.48269517]
[1737793871095,0.03,248.67,248.58,6.4506]
[1737793871307,0.03,248.67,248.59,0.40213736]
[1737793871989,0.03,248.67,248.59,33.40213736]
[1737793872208,0.03,248.67,248.62,20.0]
[1737793872509,0.03,248.67,248.63,0.40207184]
[1737793873898,0.03,248.67,248.64,4.0218]
[1737793875011,0.03,248.67,248.62,33.0]
[1737793875312,0.03,248.67,248.62,37.0221]
[1737793875916,0.03,248.67,248.58,39.4506]
[1737793876112,0.03,248.67,248.59,4.0226]
[1737793876814,0.03,248.67,248.6,23.776884]
[1737793877020,0.03,248.67,248.6,24.17903605]
[1737793878320,0.03,248.67,248.62,23.776884]
[1737793878616,0.03,248.67,248.62,24.17896745]
[1737793879717,0.03,248.67,248.63,4.022]
[1737793880201,0.03,248.67,248.64,24.17896454]
[1737793880409,0.03,248.68,248.66,23.776884]
[1737793880601,0.03,248.68,248.67,0.40200208]
[1737793881723,0.03,248.68,248.67,4.42330208]
[1737793881903,0.03,248.68,248.67,4.0213]
[1737793892137,0.03,248.68,248.67,48.20026573]
[1737793892442,0.0001,248.69,248.68,23.776884]
[1737793893643,0.0001,248.69,248.68,24.17884247]
[1737793893853,0.0001,248.69,248.68,30.30664247]
[1737793896745,0.0001,248.69,248.68,145.20664247]
[1737793896942,0.0001,248.69,248.68,144.804684]
[1737793897758,0.0001,248.69,248.68,114.9]
[1737793898868,0.0001,248.69,248.67,4.0213]
[1737793901658,0.0001,248.69,248.65,4.0217]
[1737793904029,0.0001,248.69,248.63,37.0219]
[1737793905162,0.0001,248.69,248.61,4.0223]
[1737793905532,2.8001,248.69,248.61,4.0223]
[1737793906249,2.8001,248.69,248.58,43.1198]
[1737793906461,2.8001,248.69,248.59,4.0226]
[1737793908054,1.6453,248.68,248.58,4.0857]
[1737793909446,5.6665,248.68,248.58,4.0857]
[1737793909756,20.0,248.65,248.58,0.063]
[1737793911438,20.0,248.64,248.58,0.063]
[1737793913240,34.022,248.63,248.58,0.063]
[1737793913440,40.5044,248.63,248.58,0.063]
[1737793913945,23.776884,248.62,248.58,0.063]
[1737793914349,20.0,248.6,248.58,0.063]
[1737793915753,24.0225,248.6,248.58,0.063]
[1737793916842,20.0,248.6,248.58,0.063]
[1737793918641,24.0225,248.6,248.58,0.063]
[1737793919780,20.0,248.59,248.58,0.063]
[1737793923376,24.0225,248.6,248.58,0.063]
[1737793927188,4.0215,248.66,248.58,0.063]
[1737793927382,2.8,248.65,248.58,0.063]
[1737793930277,20.0,248.63,248.58,0.063]
[1737793932465,20.0,248.65,248.58,0.063]
[1737793932786,20.0,248.63,248.58,0.063]
[1737793933268,20.0,248.64,248.58,0.063]
[1737793939393,20.0,248.64,248.58,4.0858]
[1737793939584,22.8,248.65,248.58,4.0858]
[1737793939585,2.8,248.65,248.58,4.0858]
[1737793939790,0.0001,248.69,248.58,4.0858]
[1737793939993,20.0,248.67,248.58,4.0858]
[1737793940723,0.0001,248.69,248.59,31.780884]
[1737793940891,0.0001,248.69,248.59,32.18308714]
[1737793942023,0.0001,248.69,248.6,14.0788]
[1737793943241,0.0001,248.69,248.61,24.17899322]
[1737793944443,0.0001,248.69,248.62,14.0777]
[1737793945133,0.0001,248.69,248.63,0.40211256]
[1737793945310,0.0001,248.69,248.63,33.40211256]
[1737793947409,0.0001,248.69,248.64,4.0218]
[1737793947926,0.0001,248.69,248.65,24.17896628]
[1737793949107,0.0001,248.69,248.66,4.0215]
[1737793949308,0.0001,248.69,248.64,114.9]
[1737793949526,0.0001,248.69,248.64,4.0217]
[1737793949947,0.0001,248.69,248.6,33.0]
[1737793950236,0.0001,248.69,248.62,4.0221]
[1737793950952,0.0001,248.69,248.6,4.0224]
[1737793954429,0.0001,248.69,248.59,83.5119]
[1737793955347,20.0,248.66,248.58,33.063]
[1737793955512,20.0,248.66,248.58,0.063]
[1737793956535,24.0217,248.66,248.58,0.063]
[1737793957319,23.776884,248.65,248.58,0.063]
[1737793957524,2.8,248.64,248.58,0.063]
[1737793958822,6.822,248.64,248.58,0.063]
[1737793959023,20.0,248.6,248.58,0.063]
[1737793960238,24.0226,248.6,248.58,0.063]
[1737793961322,20.0,248.61,248.58,0.063]
[1737793963924,20.0,248.63,248.58,0.063]
[1737793964952,20.0,248.61,248.58,0.063]
[1737793967058,24.0224,248.61,248.58,0.063]
[1737793970359,4.022,248.63,248.58,0.063]
[1737793970859,20.0,248.61,248.58,0.063]
[1737793971565,24.022,248.63,248.58,0.063]
[1737793972973,23.776884,248.62,248.58,0.063]
[1737793973476,23.776884,248.62,248.47,116.5014]
[1737793973477,23.776884,248.58,248.47,1.6014]
[1737793973650,20.0,248.55,248.42,118.9883]
[1737793973854,20.0,248.51,248.42,114.963]
[1737793974050,2.8,248.5,248.42,114.963]
[1737793974350,2.8,248.5,248.42,0.063]
[1737793974977,23.776884,248.48,248.42,0.063]
[1737793977477,27.801184,248.49,248.42,0.063]
[1737793978761,4.0243,248.49,248.42,0.063]
[1737793978964,2.8,248.5,248.42,0.063]
[1737793980290,2.8,248.5,248.42,4.0883]
[1737793980471,7.9575,248.55,248.42,4.0883]
[1737793980472,2.8,248.49,248.42,4.0883]
[1737793981083,2.8,248.49,248.42,0.063]
[1737793982787,2.8,248.49,248.42,4.0883]
[1737793984082,6.4861,248.6,248.42,118.9883]
[1737793984259,6.4861,248.6,248.43,7.842]
[1737793984260,2.8,248.59,248.43,7.842]
[1737793984686,23.776884,248.58,248.43,7.842]
[1737793985083,2.8,248.59,248.43,7.842]
[1737793985291,20.0,248.56,248.44,4.0251]
[1737793985496,20.0,248.56,248.44,14.0878]
[1737793986155,2.8,248.59,248.44,14.0878]
[1737793986360,20.0,248.56,248.44,14.0878]
[1737793987691,2.8,248.59,248.44,128.9878]
[1737793987895,2.8,248.59,248.45,0.40234962]
[1737793988375,2.8,248.59,248.45,24.17923362]
[1737793988989,20.0,248.62,248.45,24.17923362]
[1737793989195,2.8,248.61,248.45,24.17923362]
[1737793989394,2.8,248.61,248.44,128.9878]
[1737793989395,20.0,248.58,248.46,4.0247]
[1737793991805,20.0,248.58,248.46,118.9247]
[1737793992897,23.776884,248.57,248.46,85.9247]
[1737793993197,4.0231,248.56,248.46,85.9247]
[1737793993790,20.0,248.58,248.46,85.9247]
[1737793994496,23.776884,248.59,248.46,85.9247]
[1737793994869,20.0,248.57,248.46,85.9247]
[1737793996089,24.023,248.57,248.46,85.9247]
[1737793997390,24.023,248.57,248.44,33.0]
[1737793997576,23.776884,248.55,248.44,33.0]
[1737793997902,20.0,248.52,248.43,7.842]
[1737793999102,4.0239,248.51,248.43,7.842]
[1737793999806,23.776884,248.5,248.42,0.063]
[1737794000205,4.0239,248.51,248.42,0.063]
[1737794000703,23.776884,248.5,248.42,0.063]
[1737794003125,4.0241,248.5,248.42,0.063]
[1737794003303,20.0,248.53,248.42,4.0883]
[1737794003304,4.0239,248.52,248.42,4.0883]
[1737794006320,27.800884,248.51,248.42,0.063]
[1737794011129,27.800884,248.51,248.42,4.0883]
[1737794017243,20.0,248.48,248.42,4.0883]
[1737794017531,4.0233,248.55,248.42,4.0883]
[1737794017916,20.0,248.51,248.42,4.0883]
[1737794019733,2.8,248.5,248.42,4.0883]
[1737794022515,2.8,248.5,248.46,0.063]
[1737794024338,1.5965,248.58,248.46,0.063]
[1737794024633,0.03,248.58,248.46,4.0877]
[1737794024849,2.8,248.57,248.46,129.0496]
[1737794025441,0.03,248.58,248.46,129.0496]
[1737794025614,2.83,248.58,248.46,129.0496]
[1737794026318,0.03,248.58,248.51,7.717]
[1737794026530,0.03,248.58,248.51,122.617]
[1737794026739,0.03,248.58,248.52,0.40224245]
[1737794028019,0.03,248.58,248.53,4.0236]
[1737794028215,0.03,248.58,248.53,118.9236]
[1737794028438,0.03,248.58,248.54,0.40222992]
[1737794030130,0.03,248.58,248.55,4.0233]
[1737794031944,0.0001,248.69,248.56,31.8960832]
[1737794032148,0.0001,248.69,248.56,146.7960832]
[1737794032445,0.0001,248.69,248.56,146.393884]
[1737794033042,0.0001,248.69,248.59,20.0]
[1737794033348,0.0001,248.69,248.59,20.40211121]
[1737794033535,0.0001,248.69,248.6,4.0225]
[1737794035246,0.0001,248.69,248.6,37.0225]
[1737794036173,20.0,248.67,248.56,7.717]
[1737794036450,20.0,248.67,248.54,33.0]
[1737794036451,20.0,248.63,248.54,33.0]
[1737794036650,20.0,248.63,248.5,40.6082]
[1737794036948,20.0,248.63,248.5,44.6323]
[1737794037652,4.0222,248.62,248.5,44.6323]
[1737794042264,4.0222,248.62,248.5,126.5323]
[1737794042455,4.0222,248.62,248.5,118.9241]
[1737794044146,6.8224,248.61,248.5,118.9241]
[1737794044753,20.0,248.58,248.5,114.9]
[1737794045067,20.0,248.58,248.5,81.9]
[1737794045632,20.0,248.57,248.5,81.9]
[1737794046668,4.0231,248.56,248.46,33.063]
[1737794047769,4.0231,248.56,248.46,37.0877]
[1737794047937,20.0,248.57,248.46,37.0877]
[1737794048137,4.0226,248.6,248.46,37.0877]
[1737794048856,20.0,248.58,248.46,37.0877]
[1737794051265,20.0,248.58,248.46,118.9877]
[1737794051746,20.0,248.6,248.46,118.9877]
[1737794051951,20.0,248.58,248.46,118.9877]
[1737794052951,4.0228,248.58,248.46,118.9877]
[1737794053170,20.0,248.57,248.46,118.9877]
[1737794054087,4.0231,248.56,248.46,118.9877]
[1737794054463,23.776884,248.53,248.46,0.063]
[1737794056176,27.800584,248.53,248.46,0.063]
[1737794057558,20.0,248.57,248.46,4.0877]
[1737794057858,2.8,248.56,248.46,4.0877]
[1737794058066,22.8,248.56,248.46,4.0877]
[1737794058779,2.8,248.56,248.46,4.0877]
[1737794058964,2.8,248.56,248.46,0.063]
[1737794058965,23.776884,248.55,248.46,0.063]
[1737794060859,4.0234,248.54,248.46,0.063]
[1737794061382,20.0,248.52,248.46,0.063]
[1737794063482,0.03,248.62,248.47,7.9466]
[1737794063686,0.03,248.62,248.47,122.8466]
[1737794064676,20.0,248.61,248.47,122.8466]
[1737794064883,0.03,248.62,248.47,122.8466]
[1737794065555,20.0,248.61,248.48,4.0244]
[1737794066168,20.03,248.62,248.48,14.48783006]
[1737794066573,22.83,248.62,248.48,326.48783006]
[1737794066887,2.83,248.62,248.48,326.0855]
[1737794067181,22.83,248.62,248.48,326.0855]
[1737794067693,22.83,248.62,248.48,14.0855]
[1737794068470,2.83,248.62,248.48,14.0855]
[1737794068696,0.03,248.62,248.49,0.40229964]
[1737794068883,0.03,248.62,248.49,24.17918364]
[1737794069288,0.03,248.62,248.51,23.776884]
[1737794069586,0.03,248.62,248.52,0.40222577]
[1737794069771,0.03,248.62,248.52,115.30222577]
[1737794069967,0.03,248.62,248.52,114.9]
[1737794070569,0.03,248.62,248.52,426.9]
[1737794070775,0.03,248.62,248.53,4.0236]
[1737794074965,0.03,248.62,248.53,118.9236]
[1737794077489,0.03,248.62,248.54,24.17914731]
[1737794077695,0.03,248.62,248.55,6.3236]
[1737794077996,0.03,248.62,248.56,0.40218656]
[1737794078378,0.03,248.62,248.57,1.5521]
[1737794078582,0.03,248.62,248.59,4.0226]
[1737794078792,0.03,248.62,248.6,0.40211753]
[1737794079296,0.03,248.62,248.59,4.0226]
[1737794080297,0.03,248.62,248.6,0.40213926]
[1737794081371,0.03,248.62,248.61,4.0223]
[1737794083784,0.03,248.62,248.61,119.32442796]
[1737794084081,0.03,248.62,248.61,118.9223]
[1737794085280,0.03,248.62,248.61,142.699184]
[1737794085673,0.0001,248.69,248.62,23.776884]
[1737794086005,0.0001,248.69,248.63,0.40206439]
[1737794086292,0.0001,248.69,248.66,20.0]
[1737794086494,0.0001,248.69,248.67,0.40201024]
[1737794086679,0.0001,248.69,248.68,1.5886]
[1737794087987,0.0001,248.69,248.68,6.0117906]
[1737794088690,0.0001,248.69,248.68,1.5886]
[1737794089782,0.0001,248.69,248.68,116.4886]
[1737794092201,0.0001,248.69,248.68,114.9]
[1737794093113,0.0001,248.69,248.68,81.9]
[1737794101013,0.0001,248.69,248.65,33.0]
[1737794102908,0.0001,248.69,248.65,37.0216]
[1737794103301,0.0001,248.69,248.66,0.40212376]
[1737794103697,0.0001,248.69,248.68,20.0]
[1737794104015,0.0001,248.69,248.68,24.42316992]
[1737794106518,0.0001,248.69,248.68,48.20005392]
[1737794107420,0.0001,248.69,248.68,163.10005392]
[1737794107593,0.0001,248.69,248.68,162.698084]
[1737794108206,0.0001,248.69,248.68,170.858484]
[1737794108513,0.03,248.75,248.72,20.0]
[1737794108700,0.03,248.75,248.73,24.17876197]
[1737794109423,0.03,248.75,248.73,0.40187797]
[1737794109600,0.03,248.75,248.72,114.9]
[1737794109801,0.03,248.75,248.73,0.40195725]
[1737794110295,0.03,248.75,248.74,4.0202]
[1737794110493,0.03,248.75,248.74,27.797084]
[1737794110694,0.03,248.76,248.75,23.776884]
[1737794110898,0.03,248.76,248.75,24.17870208]
[1737794113416,0.03,248.76,248.75,336.17870208]
[1737794113607,0.03,248.76,248.75,312.0]
[1737794114017,0.03,248.76,248.74,118.9202]
[1737794114224,0.03,248.76,248.75,81.9]
[1737794115038,0.03,248.76,248.75,114.9]
[1737794116124,0.03,248.76,248.75,81.9]
[1737794116314,0.03,248.76,248.74,37.0201]
[1737794123024,0.03,248.77,248.75,28.9477654]
[1737794123233,0.0001,248.77,248.75,5.1708814]
[1737794124312,0.0001,248.77,248.76,23.776884]
[1737794125625,0.0001,248.77,248.76,27.796784]
[1737794125930,0.0001,248.77,248.76,339.796784]
[1737794128532,0.0001,248.77,248.76,454.696784]
[1737794129033,0.0001,248.77,248.76,118.9199]
[1737794129515,0.0001,248.77,248.76,142.696784]
[1737794131130,20.0,248.93,248.8,20.0]
[1737794131430,20.0,248.93,248.8,114.9]
[1737794132230,4.0173,248.92,248.81,4.0191]
[1737794132420,24.0173,248.92,248.81,4.0191]
[1737794134041,25.6742,248.92,248.81,4.0191]
[1737794134433,25.6742,248.92,248.81,37.0191]
[1737794137043,25.6742,248.92,248.81,33.0]
[1737794137348,25.6742,248.92,248.81,37.019]
[1737794139915,21.6569,248.92,248.81,37.019]
[1737794140145,20.0,248.91,248.81,37.019]
[1737794140347,20.0,248.91,248.81,118.919]
[1737794140943,1.6569,248.92,248.81,128.9668]
[1737794144343,6.6344,248.96,248.86,20.0]
[1737794144542,0.3992,248.96,248.9,20.0]
[1737794144720,0.3992,248.96,248.87,1.99947758]
[1737794144922,0.3992,248.96,248.89,20.0]
[1737794145141,0.03,249.0,248.89,20.0]
[1737794145142,0.03,249.0,248.9,30.40809006]
[1737794145340,0.03,249.0,248.9,126.30012185]
[1737794145519,0.03,249.0,248.93,20.0]
[1737794145723,0.03,249.0,248.94,23.776884]
[1737794145935,0.03,249.0,248.94,24.1784349]
[1737794146350,0.03,249.0,248.98,43.776884]
[1737794146549,0.03,249.0,248.99,0.40147581]
[1737794146741,0.03,249.0,248.98,158.676884]
[1737794147057,0.03,249.0,248.98,134.9]
[1737794147553,0.03,249.0,248.98,114.9]
[1737794149657,0.03,249.0,248.95,33.0]
[1737794154131,0.03,249.0,248.9,114.9]
[1737794154338,20.0,248.98,248.9,114.9]
[1737794154550,20.0,248.97,248.83,114.9]
[1737794154728,20.0,248.97,248.83,118.9187]
[1737794155052,4.0167,248.96,248.83,118.9187]
[1737794157055,4.0167,248.96,248.84,27.795384]
[1737794158050,4.0167,248.96,248.84,114.9]
[1737794158360,6.8167,248.96,248.84,114.9]
[1737794158565,30.0,248.94,248.84,114.9]
[1737794158948,23.776884,248.93,248.8,34.6459]
[1737794159163,23.776884,248.93,248.8,33.0]
[1737794159543,30.0,248.91,248.8,33.0]
[1737794159858,1.5638,248.9,248.8,33.0]
[1737794160042,7.8599,248.9,248.8,33.0]
[1737794160476,4.0178,248.89,248.8,33.0]
[1737794160770,30.0,248.88,248.8,33.0]
[1737794161066,4.0178,248.89,248.8,33.0]
[1737794163181,14.0623,248.89,248.8,33.0]
[1737794166969,14.0623,248.89,248.78,114.9]
[1737794167170,14.0623,248.89,248.8,0.063]
[1737794172781,20.0,248.85,248.8,0.063]
[1737794173078,23.776884,248.84,248.8,0.063]
[1737794173283,31.636784,248.8,248.76,0.063]
[1737794173585,2.8,248.79,248.76,0.063]
[1737794174656,4.0196,248.78,248.76,0.063]
[1737794175681,2.8,248.79,248.76,0.063]
[1737794176369,2.8,248.84,248.76,0.063]
[1737794176778,6.8187,248.84,248.76,0.063]
[1737794176960,2.8,248.85,248.76,0.063]
[1737794177301,2.8,248.85,248.76,33.063]
[1737794178804,6.8185,248.85,248.76,33.063]
[1737794179982,2.83,248.85,248.76,37.0828]
[1737794180181,0.03,248.85,248.76,37.0828]
[1737794182372,0.03,248.85,248.76,33.063]
[1737794184576,0.03,248.85,248.76,37.0828]
[1737794184796,0.03,248.85,248.76,118.9828]
[1737794186186,4.0484,248.85,248.76,118.9828]
[1737794187699,0.03,248.85,248.76,118.9828]
[1737794197106,0.03,248.85,248.76,114.963]
[1737794204313,20.0,248.83,248.76,114.963]
[1737794205826,0.03,248.85,248.76,114.963]
[1737794206213,20.03,248.85,248.76,114.963]
[1737794208223,4.0186,248.84,248.76,114.963]
[1737794211122,0.03,248.85,248.76,114.963]
[1737794211330,0.03,248.85,248.77,0.40193986]
[1737794212430,0.03,248.85,248.78,4.0196]
[1737794214129,0.03,248.85,248.76,114.963]
[1737794215732,0.03,248.85,248.77,4.0197]
[1737794216840,20.03,248.85,248.76,114.963]
[1737794217211,20.0,248.83,248.76,0.063]
[1737794217847,4.0189,248.82,248.76,0.063]
[1737794218037,20.0,248.81,248.76,0.063]
[1737794218923,20.0,248.79,248.76,0.063]
[1737794219524,4.0189,248.82,248.76,0.063]
[1737794220736,20.0,248.79,248.76,0.063]
[1737794222043,4.0196,248.78,248.76,0.063]
[1737794223619,23.776884,248.84,248.76,0.063]
[1737794223620,4.0186,248.84,248.76,0.063]
[1737794224231,20.0,248.83,248.76,0.063]
[1737794224436,20.0,248.84,248.76,0.063]
[1737794224838,20.0,248.83,248.76,0.063]
[1737794226618,4.0189,248.82,248.76,0.063]
[1737794228028,0.03,248.85,248.76,0.063]
[1737794228029,24.0187,248.84,248.76,33.063]
[1737794228231,0.03,248.85,248.76,37.0829]
[1737794229045,0.03,248.85,248.78,1.5327]
[1737794229623,0.03,248.85,248.79,24.17871873]
[1737794230459,0.03,248.85,248.8,4.0192]
[1737794230622,0.03,248.85,248.81,0.40172769]
[1737794230823,0.03,248.96,248.86,23.776884]
[1737794231042,0.03,248.96,248.87,0.40166463]
[1737794231234,0.03,248.96,248.88,23.776884]
[1737794231439,0.03,248.96,248.89,0.40163094]
[1737794232264,0.03,248.96,248.9,23.776884]
[1737794232451,0.03,248.96,248.91,0.40162056]
[1737794232758,0.03,248.96,248.91,33.40162056]
[1737794233123,0.03,248.96,248.91,37.41902056]
[1737794234255,0.03,248.96,248.91,33.40162056]
[1737794234630,0.03,248.96,248.91,33.0]
[1737794234824,0.03,248.96,248.88,33.0]
[1737794239970,0.03,248.96,248.84,1.5327]
[1737794242355,0.03,248.96,248.85,4.0814]
[1737794243057,0.03,248.96,248.86,24.17860384]
[1737794243447,0.03,248.96,248.86,139.07860384]
[1737794243650,0.03,248.96,248.87,0.40164328]
[1737794244437,0.03,248.96,248.88,4.018]
[1737794244642,0.03,248.96,248.89,24.1785299]
[1737794244857,0.03,248.96,248.89,57.1785299]
[1737794245758,0.03,248.96,248.89,139.0785299]
[1737794245947,0.03,248.96,248.89,138.676884]
[1737794246448,0.03,248.96,248.92,20.0]
[1737794246655,0.03,248.96,248.93,24.17846558]
[1737794247153,0.03,248.96,248.93,57.17846558]
[1737794247749,0.03,248.96,248.95,25.371584]
[1737794247956,0.03,248.96,248.95,58.7730972]
[1737794250150,0.03,248.96,248.95,34.5947]
[1737794250658,0.03,248.96,248.95,33.0]
[1737794251564,0.03,248.96,248.95,56.776884]
[1737794251975,0.03,248.96,248.93,33.0]
[1737794252259,0.03,248.96,248.87,114.9]
[1737794252456,0.03,248.96,248.85,33.063]
[1737794253744,0.03,248.96,248.86,0.40176318]
[1737794253941,0.03,248.96,248.86,24.17864718]
[1737794254152,0.03,248.96,248.88,23.776884]
[1737794254351,0.03,248.96,248.88,24.17852139]
[1737794254861,0.03,248.96,248.88,57.17852139]
[1737794255250,0.03,248.96,248.88,56.776884]
[1737794255654,0.03,248.96,248.88,57.17854791]
[1737794256351,0.03,248.96,248.9,23.776884]
[1737794256669,0.03,248.96,248.91,0.40160876]
[1737794256841,0.03,248.96,248.9,23.776884]
[1737794257243,0.03,248.96,248.9,114.9]
[1737794259156,4.0168,248.95,248.88,33.0]
[1737794259777,0.03,248.96,248.89,23.776884]
[1737794259949,0.03,248.96,248.88,118.9179]
[1737794260544,0.03,248.96,248.89,24.1785728]
[1737794261575,0.03,248.96,248.89,27.794484]
[1737794265162,0.03,248.96,248.89,33.0]
[1737794265362,0.03,248.96,248.88,33.0]